[Event "Fagernes GM Open Autumn 2024"]
[Site "Fagernes"]
[Date "2024.10.10"]
[Round "6.1"]
[White "Stremavicius, Titas"]
[Black "Jumabayev, Rinat"]
[Result "1/2-1/2"]
[ECO "A07"]
[WhiteElo "2541"]
[BlackElo "2577"]
[Annotator "TA"]
[PlyCount "24"]
[EventDate "2024.10.03"]
[EventType "swiss"]
[EventCountry "NOR"]
[SourceTitle "playchess.com"]
[Source "ChessBase"]
[SourceQuality "1"]
[TimeControl "40/6000:2400+30"]

{[%evp 9,24,27,23,28,37,27,31,25,33,0,16,-5,-17,0,-2,-6,4]} 1. Nf3 {[%emt 0:00:00]} d5 {[%emt 0:00:00]} 2. g3 {[%emt 0:00:00]} b6 {[%emt 0:00:00]} 3. c4 {[%emt 0:19:16]} dxc4 {[%emt 0:04:14]} 4. Na3 {[%emt 0:01:19]} Bb7 {[%emt 0:00:45]} 5. Bg2 {[%emt 0:00:00]} e6 {[%emt 0:13:11]} 6. Nxc4 {[%emt 0:01:16]} Nd7 {[%emt 0:00:00]} 7. O-O {[%emt 0:03:48]} Ngf6 {[%emt 0:00:00]} 8. d3 {[%emt 0:00:42] White is slightly better.} Be7 {[%emt 0:00:00]} 9. Bf4 {[%emt 0:00:00]} O-O {[%emt 0:00:53] The position is equal.} 10. Qb3 {[%emt 0:02:46]} a5 {[%emt 0:14:14]} 11. a4 {[%emt 0:08:14]} Nd5 {[%emt 0:08:22]} 12. Bd2 {[%emt 0:01:17]} Bb4 {[%emt 0:01:37] Weighted Error Value: White=0.08 (flawless) /Black=0.02 (flawless) .  OK:         	White=3     	Black=3} 1/2-1/2

[Event "Fagernes GM Open Autumn 2024"]
[Site "Fagernes"]
[Date "2024.10.10"]
[Round "6.2"]
[White "Willow, Jonah B"]
[Black "Raja Rithvik R"]
[Result "1-0"]
[ECO "C64"]
[WhiteElo "2420"]
[BlackElo "2514"]
[Annotator "TA"]
[PlyCount "79"]
[EventDate "2024.10.03"]
[EventType "swiss"]
[EventCountry "NOR"]
[SourceTitle "playchess.com"]
[Source "ChessBase"]
[SourceQuality "1"]
[TimeControl "40/6000:2400+30"]

{[%evp 9,79,39,26,35,31,29,20,26,33,28,37,39,45,58,60,41,68,56,117,110,119,82,140,143,142,115,120,93,168,115,267,270,293,279,300,300,283,285,306,314,318,309,310,284,306,306,424,418,593,602,589,315,610,595,743,593,586,586,869,845,965,944,1013,979,1532,1014,2172,2140,2447,934,939,919]} 1. e4 {[%emt 0:00:00]} e5 {[%emt 0:00:56]} 2. Nf3 {[%emt 0:00:00]} Nc6 {[%emt 0:00:00]} 3. Bb5 {[%emt 0:00:00]} Bc5 {[%emt 0:00:00]} 4. c3 {[%emt 0:00:00]} Nf6 {[%emt 0:00:00]} 5. d4 {[%emt 0:02:44]} exd4 {[%emt 0:00:00]} 6. e5 {[%emt 0:00:00]} Nd5 {[%emt 0:00:00]} 7. O-O {[%emt 0:13:25][%cal Rc3d4]} Be7 {[%emt 0:00:00]} 8. cxd4 {[%emt 0:01:27] Threatens to win with Qb3. The position is equal.} d6 {[%emt 0:00:00]} 9. exd6 {[%emt 0:04:10]} cxd6 {[%emt 0:00:00]} 10. Qb3 {[%emt 0:00:52]} a6 {[%emt 0:29:28]} 11. Qxd5 {[%emt 0:12:29]} (11. Bc4 Na5 12. Bb5+ axb5 $11) 11... axb5 {[%emt 0:00:00]} 12. Qxb5 {[%emt 0:00:00]} Ra5 {[%emt 0:03:01]} 13. Qb3 {[%emt 0:02:04] White is more active.} Rh5 {[%emt 0:13:06]} (13... Be6 $14 14. Qxb7 Qd7 15. Qxd7+ Kxd7) 14. d5 {[%emt 0:03:00]} Na5 {[%emt 0:03:17]} 15. Qd3 {[%emt 0:04:24] Hoping for Nc3.} O-O {[%emt 0:04:01]} (15... Bf5 $142 16. Qe2 O-O) 16. Nc3 $16 {[%emt 0:02:03] b4 would now be deadly.} Bf5 {[%emt 0:03:35]} 17. Qe2 {[%emt 0:01:47]} Bf6 {[%emt 0:03:00]} 18. Be3 {[%emt 0:06:06]} Re8 {[%emt 0:06:38]} (18... Bxc3 $16 19. bxc3 Be4) 19. Rfe1 {[%emt 0:09:21]} (19. Rac1 $18) 19... Qd7 $2 {[%emt 0:05:32] [#] This costs Black the game.} (19... Bxc3 $16 {keeps fighting.} 20. bxc3 h6) 20. Rac1 $1 $18 {[%emt 0:06:26]} (20. Ne5 $2 Rxe5 21. Rac1 (21. Qxh5 $2 Bg4 $19) 21... Rh4 $19) 20... b6 {[%emt 0:11:58]} 21. Nb5 {[%emt 0:05:59] Black must now prevent b4.} (21. Ne5 $2 Rxe5 22. b4 (22. Qxh5 $2 Bg4 $19) 22... Nb7 $17 (22... Bg4 23. f3 $11)) 21... Bd8 {[%emt 0:07:12]} 22. b4 {[%emt 0:03:47]} Nb7 {[%emt 0:00:00]} 23. Nfd4 {[%emt 0:04:40]} Bg6 {[%emt 0:03:20]} 24. Nc3 {[%emt 0:03:24] Excellent horsemanship.} h6 {[%emt 0:02:42]} 25. a4 {[%emt 0:07:33]} Bf6 {[%emt 0:00:09]} 26. Qb5 {[%emt 0:00:01]} Qxb5 {[%emt 0:00:38]} 27. Ndxb5 {[%emt 0:00:00]} Rh4 {[%emt 0:00:15]} 28. f4 {[%emt 0:00:17]} (28. Bxb6 Ra8 $16) 28... Rxe3 {[%emt 0:00:37]} (28... Bd8 {is a better defense.} 29. g3 Rh5) 29. Rxe3 {[%emt 0:00:00]} Rxf4 {[%emt 0:00:00]} 30. Re8+ {[%emt 0:00:00]} Kh7 {[%emt 0:00:00]} 31. Rb8 {[%emt 0:00:00] White is clearly winning.} Nd8 {[%emt 0:00:00]} 32. a5 {[%emt 0:00:00]} (32. Nxd6 Bd4+ 33. Kh1 Bxc3 $16) 32... bxa5 {[%emt 0:00:00]} 33. bxa5 {[%emt 0:00:00] a6 is the strong threat.} (33. Nxd6 Bd4+ 34. Kh1 Bxc3 $15) 33... Bd3 {[%emt 0:00:00]} 34. a6 {[%emt 0:00:00]} ({Less strong is} 34. Nxd6 Bxc3 35. Rxd8 Bxa5 $16) 34... Bg5 {[%emt 0:00:00]} 35. a7 {[%emt 0:01:25]} Rf5 {[%emt 0:00:00]} 36. Ra1 {[%emt 0:00:14]} (36. a8=B Bxc1 37. h3 Rf1+ 38. Kh2 Bg5 39. Nxd6 Rc1 $17 (39... Bf4+ $2 40. g3 $19)) 36... Be3+ {[%emt 0:00:00]} 37. Kh1 {[%emt 0:00:00]} Rf2 {[%emt 0:00:00]} 38. a8=Q {[%emt 0:01:28]} Bf1 {[%emt 0:00:00] [#]} 39. Qa7 $3 {[%emt 0:00:00]} Bxa7 {[%emt 0:00:00]} 40. Nxa7 {[%emt 0:00:00] Weighted Error Value: White=0.15 (very precise) /Black=0.33.  Mistake:       	White=1     	Black=5      Inaccurate:     	White=1     	Black=3      OK:         	White=15    	Black=11     Best:        	White=1     	Black=1      Strong:       	White=1     	---} 1-0

[Event "Fagernes GM Open Autumn 2024"]
[Site "Fagernes"]
[Date "2024.10.10"]
[Round "6.3"]
[White "Kvaloy, Aksel Bu"]
[Black "Ghasi, Ameet K"]
[Result "1/2-1/2"]
[ECO "B13"]
[WhiteElo "2484"]
[BlackElo "2503"]
[Annotator "TA"]
[PlyCount "133"]
[EventDate "2024.10.03"]
[EventType "swiss"]
[EventCountry "NOR"]
[SourceTitle "playchess.com"]
[Source "ChessBase"]
[SourceQuality "1"]
[TimeControl "40/6000:2400+30"]

{[%evp 14,133,14,0,10,0,5,0,39,18,41,46,46,39,43,26,35,32,38,29,46,17,23,19,20,11,5,0,34,18,34,29,43,16,36,12,14,18,50,47,45,47,44,45,47,45,45,45,51,46,61,54,49,50,54,47,45,48,65,65,58,61,58,64,54,50,47,36,39,0,48,46,49,47,160,46,71,54,128,121,163,71,71,33,73,16,55,55,55,33,33,33,33,33,33,33,33,0,0,0,0,0,0,0,0,0,0,0,0,0,0,0,0,0,0,0,0,0,0,0,0,0]} 1. e4 {[%emt 0:00:00]} c6 {[%emt 0:00:58]} 2. d4 {[%emt 0:00:00]} d5 {[%emt 0:00:51]} 3. exd5 {[%emt 0:00:00]} cxd5 {[%emt 0:00:00]} 4. Bd3 {[%emt 0:00:00]} Nf6 {[%emt 0:00:27]} 5. h3 {[%emt 0:00:00]} Nc6 {[%emt 0:01:13]} 6. c3 {[%emt 0:00:00]} g6 {[%emt 0:00:00]} 7. Nf3 {[%emt 0:00:00][%cal Bg1f3,Bf3e1,Be1d3][%mdl 32]} Bf5 {[%emt 0:00:00]} 8. O-O {[%emt 0:00:00]} Qc7 {[%emt 0:03:52]} 9. Ne1 {[%emt 0:11:17]} (9. Be3 {simplifies} Bxd3 10. Qxd3 Bg7 11. Nbd2) 9... e6 {[%emt 0:07:09]} 10. Bg5 {[%emt 0:01:39]} Bg7 {[%emt 0:03:16]} 11. Nd2 {[%emt 0:03:26]} a6 {[%emt 0:07:04]} 12. Bxf5 {[%emt 0:07:06]} exf5 {[%emt 0:07:08]} 13. Nd3 {[%emt 0:00:49]} O-O {[%emt 0:06:02]} 14. Bf4 {[%emt 0:00:16]} Qd8 {[%emt 0:06:43]} 15. Re1 {[%emt 0:09:40]} Ne4 {[%emt 0:08:15]} 16. f3 {[%emt 0:03:15]} Ng5 {[%emt 0:04:09]} 17. Nb3 {[%emt 0:05:10]} Ne6 {[%emt 0:05:31] Against Ndc5} 18. Bh2 {[%emt 0:00:21]} b6 {[%emt 0:00:43]} 19. Qd2 {[%emt 0:01:43]} Bf6 {[%emt 0:04:06]} 20. Nf4 {[%emt 0:04:18]} Nc7 {[%emt 0:00:32]} 21. Re2 {[%emt 0:02:54]} Bg5 {[%emt 0:03:47]} 22. Rae1 {[%emt 0:01:51]} Rc8 {[%emt 0:01:57]} 23. Nc1 {[%emt 0:07:19]} Bh4 {[%emt 0:05:08]} 24. g3 {[%emt 0:00:52]} Bg5 {[%emt 0:01:57]} 25. Ncd3 {[%emt 0:00:22]} h5 {[%emt 0:05:15]} 26. Kh1 {[%emt 0:01:24]} Re8 {[%emt 0:01:39]} 27. Rxe8+ {[%emt 0:10:22]} Nxe8 {[%emt 0:00:00]} 28. h4 {[%emt 0:00:00]} Bh6 {[%emt 0:00:02]} 29. Bg1 {[%emt 0:00:00]} Nc7 {[%emt 0:02:40]} 30. Be3 {[%emt 0:00:39]} Qd6 {[%emt 0:00:00]} 31. Kg2 {[%emt 0:00:35][%cal Of4d5]} Bg7 {[%emt 0:00:04]} 32. Nh3 {[%emt 0:00:49]} Qd7 {[%emt 0:01:41]} 33. Bf4 {[%emt 0:02:31]} Ne6 {[%emt 0:00:03]} 34. Bh6 {[%emt 0:00:36]} Bf6 {[%emt 0:00:18]} 35. Nhf4 {[%emt 0:01:24] Black must now prevent Nxe6.} Re8 {[%emt 0:02:02]} 36. Nxe6 {[%emt 0:02:56]} Rxe6 {[%emt 0:00:00]} 37. Rxe6 {[%emt 0:00:27]} Qxe6 {[%emt 0:00:00]} 38. Kf2 {[%emt 0:00:09]} Be7 {[%emt 0:01:19]} 39. Bg5 {[%emt 0:04:32]} Bd6 {[%emt 0:01:25]} 40. Bf4 {[%emt 0:03:18]} Bf8 {[%emt 0:00:10]} 41. Bh6 {[%emt 0:18:54]} Be7 {[%emt 0:12:28]} 42. a4 {[%emt 0:05:35]} Kh7 {[%emt 0:05:19]} 43. Bg5 {[%emt 0:00:20]} Bf8 {[%emt 0:07:13]} (43... Bd6 $14) 44. b4 {[%emt 0:01:25]} ({Better is} 44. Nf4 $16 Qd7 45. Qc2) 44... Bd6 {[%emt 0:07:19]} 45. Bf4 {[%emt 0:00:47]} Kg7 {[%emt 0:02:57]} (45... Bf8 $14) 46. Qa2 $16 {[%emt 0:02:19]} (46. Bxd6 {simplifies} Qxd6 47. Qe2 Qe7 48. Qxe7 Nxe7 49. a5) 46... a5 {[%emt 0:01:55] [#]} 47. b5 {[%emt 0:00:46]} (47. Qe2 $1 $18 {[%cal Re2e6] has better winning chances. Qxe6 is the strong threat.} Kf6 48. b5 Qxe2+ 49. Kxe2 Bxf4 50. Nxf4) 47... Ne7 {[%emt 0:00:01]} 48. Bg5 {[%emt 0:01:40] White is more active.} f6 {[%emt 0:02:06]} 49. Bc1 {[%emt 0:01:00]} ({White should play} 49. Bf4 $16) 49... Kf7 {[%emt 0:01:59][%cal Bg7f7,Bf7e8,Be8d7,Bd7c7][%mdl 32]} 50. Bf4 {[%emt 0:02:51]} Ke8 {[%emt 0:00:19]} 51. Qe2 {[%emt 0:07:29]} Qxe2+ {[%emt 0:04:10]} 52. Kxe2 {[%emt 0:00:01]} Bxf4 {[%emt 0:01:26]} 53. Nxf4 $14 {[%emt 0:00:09][%mdl 4096] Endgame. KN-KN} Kd7 {[%emt 0:00:04]} 54. Kd3 {[%emt 0:01:17]} Kc7 {[%emt 0:00:18]} 55. c4 {[%emt 0:01:31]} dxc4+ {[%emt 0:00:34] The position is equal.} 56. Kxc4 {[%emt 0:00:06]} Kd6 {[%emt 0:00:03]} 57. Kd3 {[%emt 0:00:38]} Kc7 {[%emt 0:01:57]} 58. Ne6+ {[%emt 0:02:21]} Kd7 {[%emt 0:00:20]} 59. Nf4 {[%emt 0:00:07]} Kc7 {[%emt 0:00:10]} 60. d5 {[%emt 0:02:03]} Kd7 {[%emt 0:00:32]} 61. Kc4 {[%emt 0:00:27]} Kc7 {[%emt 0:00:27]} 62. Ng2 {[%emt 0:04:04]} Kd6 {[%emt 0:00:49]} 63. Ne3 {[%emt 0:00:21]} f4 {[%emt 0:00:59]} 64. gxf4 {[%emt 0:00:48]} Nf5 {[%emt 0:00:05]} 65. Nxf5+ {[%emt 0:00:32]} gxf5 {[%emt 0:00:03]} 66. Kd4 {[%emt 0:00:08]} Kd7 {[%emt 0:00:08]} 67. Kc4 {[%emt 0:00:08] Weighted Error Value: White=0.14 (very precise) /Black=0.14 (very precise) .  Mistake:       	White=3     	Black=2      Inaccurate:     	White=4     	Black=6      OK:         	White=17    	Black=25     Best:        	White=1     	Black=2} 1/2-1/2

[Event "Fagernes GM Open Autumn 2024"]
[Site "Fagernes"]
[Date "2024.10.10"]
[Round "6.4"]
[White "Mitusov, Semen"]
[Black "Das, Sayantan"]
[Result "0-1"]
[ECO "C11"]
[WhiteElo "2486"]
[BlackElo "2471"]
[Annotator "RC"]
[PlyCount "156"]
[EventDate "2024.10.03"]
[EventType "swiss"]
[EventCountry "NOR"]
[SourceTitle "playchess.com"]
[Source "ChessBase"]
[SourceQuality "1"]
[TimeControl "40/6000:2400+30"]

1. e4 {[%emt 0:00:00]} e6 {[%emt 0:00:00]} 2. d4 {[%emt 0:00:00]} d5 {[%emt 0:00:00]} 3. Nc3 {[%emt 0:00:23]} Nf6 {[%emt 0:00:00]} 4. e5 {[%emt 0:02:30]} Nfd7 {[%emt 0:00:00]} 5. Nce2 {[%emt 0:00:17]} c5 {[%emt 0:00:00]} 6. c3 {[%emt 0:00:00]} Nc6 {[%emt 0:00:03]} 7. f4 {[%emt 0:00:00]} f6 {[%emt 0:07:53]} 8. Nf3 {[%emt 0:01:23]} Qa5 {[%emt 0:04:22]} 9. a3 {[%emt 0:13:58]} Be7 {[%emt 0:05:56]} 10. Rb1 {[%emt 0:05:13]} c4 {[%emt 0:09:42]} 11. exf6 {[%emt 0:17:26]} Nxf6 {[%emt 0:11:48]} 12. g3 {[%emt 0:03:01]} Qb6 {[%emt 0:05:42]} 13. b4 {[%emt 0:05:12]} cxb3 {[%emt 0:02:21]} 14. Rxb3 {[%emt 0:00:50]} Qc7 {[%emt 0:00:11]} 15. Rb1 {[%emt 0:04:03]} O-O {[%emt 0:03:35]} 16. Bh3 {[%emt 0:06:07]} Ne4 {[%emt 0:04:50]} 17. O-O {[%emt 0:03:10]} Na5 {[%emt 0:07:05]} 18. Qd3 {[%emt 0:05:28]} Nc4 {[%emt 0:02:12]} 19. Ne5 {[%emt 0:03:12]} Ncd6 {[%emt 0:07:19]} 20. a4 {[%emt 0:01:52]} Nf5 {[%emt 0:07:12]} 21. c4 {[%emt 0:04:40]} b6 {[%emt 0:04:10]} 22. g4 {[%emt 0:04:24]} Nfd6 {[%emt 0:03:58]} 23. cxd5 {[%emt 0:00:00]} exd5 {[%emt 0:00:05]} 24. Ba3 {[%emt 0:01:16]} Nc4 {[%emt 0:01:41]} 25. Bxe7 {[%emt 0:04:54]} Qxe7 {[%emt 0:00:00]} 26. Nc3 {[%emt 0:01:45]} Nxc3 {[%emt 0:05:50]} 27. Qxc3 {[%emt 0:00:00]} Nxe5 {[%emt 0:00:54]} 28. fxe5 {[%emt 0:04:15]} Ba6 {[%emt 0:00:06]} 29. Rf5 {[%emt 0:01:11]} Qh4 {[%emt 0:00:40]} 30. Qf3 {[%emt 0:01:03]} Bc4 {[%emt 0:01:08]} 31. Rd1 {[%emt 0:01:48]} g6 {[%emt 0:00:25]} 32. Rf6 {[%emt 0:00:00]} Kg7 {[%emt 0:00:03]} 33. Bf1 {[%emt 0:00:00]} Rxf6 {[%emt 0:00:00]} 34. exf6+ {[%emt 0:00:00]} Qxf6 {[%emt 0:00:00]} 35. Qe3 {[%emt 0:00:00]} Rf8 {[%emt 0:00:00]} 36. Bxc4 {[%emt 0:00:00]} dxc4 {[%emt 0:00:00]} 37. d5 {[%emt 0:00:00]} c3 {[%emt 0:00:00]} 38. g5 {[%emt 0:00:00]} Qf3 {[%emt 0:00:00]} 39. Qxf3 {[%emt 0:00:00]} Rxf3 {[%emt 0:00:00]} 40. d6 {[%emt 0:00:00]} c2 {[%emt 0:00:02]} 41. Rc1 {[%emt 0:39:16]} Rc3 {[%emt 0:41:01]} 42. d7 {[%emt 0:01:44]} Rd3 {[%emt 0:00:07]} 43. Rxc2 Rxd7 {[%emt 0:00:07]} 44. Kf2 {[%emt 0:00:00]} Kf7 {[%emt 0:00:00]} 45. Rc6 {[%emt 0:00:00]} Ke8 {[%emt 0:00:00]} 46. Ke3 {[%emt 0:00:00]} Rf7 {[%emt 0:00:00]} 47. Rd6 {[%emt 0:00:00]} Rf1 {[%emt 0:00:00]} 48. Rd4 {[%emt 0:00:00]} Rf5 {[%emt 0:00:00]} 49. h4 {[%emt 0:00:00]} Ke7 {[%emt 0:00:00]} 50. Kd3 {[%emt 0:00:00]} Rc5 {[%emt 0:00:00]} 51. Rf4 {[%emt 0:00:00]} Ke6 {[%emt 0:00:00]} 52. Rf6+ {[%emt 0:00:00]} Ke5 {[%emt 0:00:00]} 53. Rf7 {[%emt 0:00:00]} Ra5 {[%emt 0:00:00]} 54. Rxh7 {[%emt 0:00:00]} Rxa4 {[%emt 0:00:00]} 55. Rg7 {[%emt 0:00:00]} Rxh4 {[%emt 0:00:00]} 56. Rxg6 {[%emt 0:00:00]} Kd5 {[%emt 0:00:00]} 57. Rf6 {[%emt 0:00:00]} Rg4 {[%emt 0:02:56]} 58. g6 {[%emt 0:00:00]} Kc5 {[%emt 0:00:58]} 59. Rf7 {[%emt 0:00:00]} Rg3+ {[%emt 0:01:07]} 60. Kc2 {[%emt 0:00:00]} a5 {[%emt 0:00:11]} 61. g7 {[%emt 0:00:00]} a4 {[%emt 0:00:48]} 62. Kb2 {[%emt 0:01:50]} b5 {[%emt 0:00:30]} 63. Rf5+ {[%emt 0:00:30]} Kb4 {[%emt 0:00:32]} 64. Rf4+ {[%emt 0:00:04]} Ka5 {[%emt 0:00:03]} 65. Rf7 {[%emt 0:00:05]} a3+ {[%emt 0:02:01]} 66. Ka2 {[%emt 0:03:37]} Ka4 {[%emt 0:00:34]} 67. Ra7+ {[%emt 0:00:18]} Kb4 {[%emt 0:00:06]} 68. Rf7 {[%emt 0:00:10]} Rg2+ {[%emt 0:00:16]} 69. Kb1 {[%emt 0:00:25]} Kb3 {[%emt 0:00:34]} 70. Rf3+ {[%emt 0:00:29]} Ka4 {[%emt 0:00:07]} 71. Rf7 {[%emt 0:00:07]} b4 {[%emt 0:00:19]} 72. Re7 {[%emt 0:00:55]} b3 {[%emt 0:01:14]} 73. Ra7+ {[%emt 0:00:24]} Kb4 {[%emt 0:00:05]} 74. Rb7+ {[%emt 0:00:04]} Kc3 {[%emt 0:00:44]} 75. Rc7+ {[%emt 0:00:07]} Kd4 {[%emt 0:00:06]} 76. Rd7+ {[%emt 0:00:41]} Ke5 {[%emt 0:00:19]} 77. Re7+ {[%emt 0:00:33]} Kf6 {[%emt 0:00:28]} 78. g8=N+ {[%emt 0:00:07]} Rxg8 {[%emt 0:00:11]} 0-1

[Event "Fagernes GM Open Autumn 2024"]
[Site "Fagernes"]
[Date "2024.10.10"]
[Round "6.5"]
[White "Bazakutsa, Svyatoslav"]
[Black "Sasikiran, Krishnan"]
[Result "1-0"]
[ECO "A21"]
[WhiteElo "2483"]
[BlackElo "2571"]
[Annotator "TA"]
[PlyCount "139"]
[EventDate "2024.10.03"]
[EventType "swiss"]
[EventCountry "NOR"]
[SourceTitle "playchess.com"]
[Source "ChessBase"]
[SourceQuality "1"]
[TimeControl "40/6000:2400+30"]

{[%evp 62,139,0,0,0,0,0,0,0,0,0,0,0,0,0,0,0,0,15,6,14,6,6,6,6,4,8,0,8,8,34,25,62,76,63,27,33,43,125,75,147,146,131,152,179,220,196,193,200,56,98,29,29,0,37,47,350,331,326,272,364,342,357,398,397,400,406,345,649,649,633,645,2132,2124,5365,5365,5069,4630,1545,4134]} 1. c4 {[%emt 0:00:36]} e5 {[%emt 0:00:00]} 2. g3 {[%emt 0:00:00]} d6 {[%emt 0:00:00]} 3. Nc3 {[%emt 0:00:00]} Be7 {[%emt 0:01:25]} 4. Bg2 {[%emt 0:00:00]} f5 {[%emt 0:02:42]} 5. d4 {[%emt 0:00:11]} Nf6 {[%emt 0:00:52]} 6. Nf3 {[%emt 0:00:34]} e4 {[%emt 0:02:47] A21: English Opening: 1...e5 2 Nc3.} 7. Ng5 {[%emt 0:01:19]} c6 {[%emt 0:04:04]} 8. d5 {[%emt 0:01:12]} Nxd5 {[%emt 0:12:00]} 9. cxd5 {[%emt 0:17:42]} Bxg5 {[%emt 0:01:49]} 10. Bxg5 {[%emt 0:00:12]} Qxg5 {[%emt 0:00:00]} 11. dxc6 {[%emt 0:00:00]} Nxc6 {[%emt 0:01:34]} 12. Qxd6 {[%emt 0:03:22]} Kf7 {[%emt 0:08:52]} 13. Qc7+ {[%emt 0:23:17]} Qe7 {[%emt 0:06:57]} 14. Qxe7+ {[%emt 0:04:12]} Kxe7 {[%emt 0:05:20]} 15. O-O-O {[%emt 0:05:06]} Be6 {[%emt 0:06:35]} 16. f3 {[%emt 0:01:56]} exf3 {[%emt 0:08:45]} 17. exf3 {[%emt 0:00:30]} Rhd8 {[%emt 0:10:04]} 18. f4 {[%emt 0:02:42]} Rac8 {[%emt 0:03:30]} 19. Rxd8 $146 {[%emt 0:03:54]} ({Predecessor:} 19. Bxc6 Rxd1+ 20. Rxd1 Rxc6 21. a3 a5 22. Rd4 Bb3 23. Kd2 Rh6 24. h4 Rc6 25. Ke3 Re6+ 26. Kf2 Rc6 27. Ke3 Re6+ 28. Kf2 Rc6 29. Ke3 {½-½ Krassowizkij,J (2456)-Predojevic,B (2626) AUT-chT 1819 2018 (1.4)}) 19... Rxd8 {[%emt 0:01:42]} 20. Bxc6 {[%emt 0:02:37]} bxc6 {[%emt 0:00:00]} 21. Kc2 {[%emt 0:00:28]} h6 {[%emt 0:01:56]} 22. h4 {[%emt 0:01:25]} Rg8 {[%emt 0:02:34]} 23. Kd3 {[%emt 0:03:44]} Rd8+ {[%emt 0:00:34]} 24. Kc2 {[%emt 0:00:06]} Rg8 {[%emt 0:00:46]} 25. b3 {[%emt 0:14:48]} Kd6 {[%emt 0:03:27]} 26. Rd1+ {[%emt 0:00:44]} Kc7 {[%emt 0:00:24]} 27. Re1 {[%emt 0:02:02]} Kd6 {[%emt 0:00:00]} 28. Re5 {[%emt 0:00:51]} g5 {[%emt 0:01:37]} 29. hxg5 {[%emt 0:00:00]} hxg5 {[%emt 0:00:00]} 30. Ra5 {[%emt 0:00:00]} gxf4 {[%emt 0:04:02]} 31. gxf4 {[%emt 0:00:00]} Rg7 {[%emt 0:02:27]} 32. Kd3 {[%emt 0:00:00]} Rh7 {[%emt 0:02:13]} 33. Kd4 {[%emt 0:01:30]} Rh4 {[%emt 0:02:24]} 34. Ne2 {[%emt 0:01:17]} Rh3 {[%emt 0:00:00]} 35. Nc1 {[%emt 0:02:46]} Rh7 {[%emt 0:00:00]} 36. Nd3 {[%emt 0:00:00]} Bd5 {[%emt 0:00:00]} 37. b4 {[%emt 0:00:00]} Re7 {[%emt 0:00:00]} 38. Nc5 {[%emt 0:00:02]} Rh7 {[%emt 0:00:00]} 39. Nd3 {[%emt 0:00:04]} Rb7 {[%emt 0:00:00]} 40. a3 {[%emt 0:00:00]} Rh7 {[%emt 0:00:00]} 41. Ra6 {[%emt 0:40:45]} Re7 {[%emt 0:06:34]} 42. Ne5 {[%emt 0:00:00]} Rb7 $1 {[%emt 0:00:24]} 43. Ke3 {[%emt 0:00:00]} Bg2 {[%emt 0:13:01]} 44. Kd4 {[%emt 0:00:00]} Bd5 {[%emt 0:00:42]} 45. Kd3 {[%emt 0:00:00]} Bg2 {[%emt 0:04:56]} 46. Kc3 {[%emt 0:00:00]} Bf1 {[%emt 0:08:01]} 47. Rxc6+ {[%emt 0:00:00]} Kd5 {[%emt 0:00:13]} 48. Rc5+ {[%emt 0:00:00]} Ke4 {[%emt 0:00:25]} 49. Ng6 {[%emt 0:00:00]} Bh3 {[%emt 0:03:23]} (49... Rb5 $14) 50. a4 {[%emt 0:00:00]} (50. Re5+ $142 Kf3 51. Kd4) 50... Rg7 {[%emt 0:02:01]} (50... a6 $142) 51. Rc6 $16 {[%emt 0:00:00]} Bg4 {[%emt 0:00:52]} 52. b5 {[%emt 0:00:00]} Bh5 {[%emt 0:01:32]} 53. Rc4+ {[%emt 0:00:00]} Ke3 {[%emt 0:01:20]} 54. Ne5 {[%emt 0:00:00]} Rg1 {[%emt 0:01:08]} 55. Rb4 {[%emt 0:01:05]} (55. Nc6 $18) 55... Be2 {[%emt 0:01:26] [#]} 56. Nc6 {[%emt 0:01:54]} ({White should try} 56. a5 $1 $16) 56... Rg7 $1 $11 {[%emt 0:00:11]} 57. Ne5 {[%emt 0:02:03]} Rc7+ {[%emt 0:00:37]} 58. Kb2 {[%emt 0:00:02]} a5 $2 {[%emt 0:00:41][%mdl 8192] [#]} (58... Bf1 $14) 59. Rb3+ $1 $18 {[%emt 0:01:29]} Kxf4 {[%emt 0:00:08]} 60. Nc6 {[%emt 0:03:11]} Bf3 {[%emt 0:00:23]} 61. b6 {[%emt 0:00:39]} ({Don't take} 61. Nxa5 Rc8 62. b6 Rd8 $18) 61... Rb7 {[%emt 0:00:42]} (61... Rxc6 $2 {loses.} 62. b7 Bd5 63. b8=Q+ $18 (63. b8=B+ Kg4 $15)) 62. Nxa5 {[%emt 0:00:00]} Rb8 {[%emt 0:00:06]} 63. Kc3 {[%emt 0:00:47]} Be4 {[%emt 0:01:18]} 64. Kc4 {[%emt 0:00:28]} Ke5 $2 {[%emt 0:00:26]} (64... Kg4 65. Rb4 f4) 65. Kc5 $18 {[%emt 0:00:24]} Rc8+ {[%emt 0:00:33]} 66. Kb5 {[%emt 0:00:03]} Bd5 {[%emt 0:00:32]} 67. b7 {[%emt 0:00:37]} Bxb7 {[%emt 0:00:12]} 68. Nxb7 {[%emt 0:00:06]} f4 {[%emt 0:00:04]} 69. Nc5 {[%emt 0:00:22]} Rb8+ {[%emt 0:00:32]} 70. Kc4 {[%emt 0:00:02]} 1-0